[Event "Late-Titled-Tuesday-Blitz-May-14-2024"]
[Site "Chess.com"]
[Date "2024.05.14"]
[Round "9"]
[White "VictorFcQNK"]
[Black "ShahMatKanal"]
[Result "0-1"]
[WhiteElo "2147"]
[BlackElo "2392"]
[TimeControl "180+1"]
[EndTime "15:43:38 PDT"]
[Termination "ShahMatKanal won by resignation"]

1. d4 {[%clk 0:02:52.7]} 1... d5 {[%clk 0:02:59.1]} 2. Nf3 {[%clk 0:02:52.1]}
2... Nf6 {[%clk 0:02:58.4]} 3. e3 {[%clk 0:02:50.4]} 3... c5 {[%clk 0:02:57.2]}
4. c3 {[%clk 0:02:48.9]} 4... cxd4 {[%clk 0:02:56.6]} 5. exd4 {[%clk 0:02:48]}
5... Nc6 {[%clk 0:02:57.2]} 6. Bd3 {[%clk 0:02:43.9]} 6... g6 {[%clk 0:02:54.6]}
7. Bf4 {[%clk 0:02:36.6]} 7... Bf5 {[%clk 0:02:46.1]} 8. Bxf5 {[%clk 0:02:33.5]}
8... gxf5 {[%clk 0:02:47]} 9. Nbd2 {[%clk 0:02:31.1]} 9... e6 {[%clk 0:02:46.1]}
10. Ne5 {[%clk 0:02:29]} 10... Qb6 {[%clk 0:02:18]} 11. O-O {[%clk 0:02:18.4]}
11... Rg8 {[%clk 0:02:10.6]} 12. Qe2 {[%clk 0:02:03.7]} 12... Nxe5 {[%clk
0:01:53.6]} 13. dxe5 {[%clk 0:02:04.3]} 13... Ne4 {[%clk 0:01:48.9]} 14. Nb3
{[%clk 0:02:00.2]} 14... a6 {[%clk 0:01:10.1]} 15. Nd4 {[%clk 0:01:52.8]} 15...
O-O-O {[%clk 0:00:57.9]} 16. a4 {[%clk 0:01:49.8]} 16... Kb8 {[%clk 0:00:55.8]}
17. a5 {[%clk 0:01:43.4]} 17... Qc7 {[%clk 0:00:53.9]} 18. Rfc1 {[%clk
0:01:38.1]} 18... Bc5 {[%clk 0:00:49.9]} 19. Be3 {[%clk 0:01:24.7]} 19... Rg6
{[%clk 0:00:36.4]} 20. f3 {[%clk 0:01:14.3]} 20... Rdg8 {[%clk 0:00:24.9]} 21.
fxe4 {[%clk 0:01:08.3]} 21... Rxg2+ {[%clk 0:00:24.4]} 22. Qxg2 {[%clk
0:01:08.6]} 22... Rxg2+ {[%clk 0:00:25.1]} 23. Kxg2 {[%clk 0:01:09]} 23... Qxe5
{[%clk 0:00:24.3]} 24. Rf1 {[%clk 0:00:54]} 24... Qxe4+ {[%clk 0:00:19.8]} 25.
Rf3 {[%clk 0:00:54.1]} 25... Bxd4 {[%clk 0:00:13.8]} 26. Bxd4 {[%clk 0:00:52.3]}
26... e5 {[%clk 0:00:13]} 27. Bb6 {[%clk 0:00:51]} 27... Qg4+ {[%clk 0:00:12.1]}
28. Rg3 {[%clk 0:00:50.4]} 28... Qe2+ {[%clk 0:00:12.2]} 29. Kh3 {[%clk
0:00:50.3]} 29... Qh5+ {[%clk 0:00:11.8]} 30. Kg2 {[%clk 0:00:50.3]} 30... Qe2+
{[%clk 0:00:12.7]} 31. Kg1 {[%clk 0:00:47.4]} 31... Kc8 {[%clk 0:00:11.5]} 32.
Rf1 {[%clk 0:00:45.2]} 32... f4 {[%clk 0:00:11.1]} 33. Rg2 {[%clk 0:00:42.3]}
33... Qd3 {[%clk 0:00:09.7]} 34. Rg7 {[%clk 0:00:38.6]} 34... Qf5 {[%clk
0:00:09.1]} 35. Rg2 {[%clk 0:00:35.1]} 35... Kd7 {[%clk 0:00:09.1]} 36. Rd1
{[%clk 0:00:33.5]} 36... Kc6 {[%clk 0:00:09.2]} 37. b3 {[%clk 0:00:30.8]} 37...
f3 {[%clk 0:00:09]} 38. Rf2 {[%clk 0:00:27.7]} 38... Qg4+ {[%clk 0:00:08.8]} 39.
Kh1 {[%clk 0:00:26.4]} 39... e4 {[%clk 0:00:09.2]} 40. Rg1 {[%clk 0:00:24.4]}
40... Qf4 {[%clk 0:00:08.3]} 41. Re1 {[%clk 0:00:18.8]} 41... f5 {[%clk
0:00:07.9]} 42. b4 {[%clk 0:00:18.2]} 42... Qe5 {[%clk 0:00:07.2]} 43. Rc2
{[%clk 0:00:16.8]} 43... f4 {[%clk 0:00:06.7]} 44. c4 {[%clk 0:00:16.9]} 44...
d4 {[%clk 0:00:06.5]} 45. c5 {[%clk 0:00:15.7]} 45... d3 {[%clk 0:00:05.3]} 46.
Rc4 {[%clk 0:00:15.5]} 46... e3 {[%clk 0:00:05.2]} 47. Bd8 {[%clk 0:00:13.3]}
47... f2 {[%clk 0:00:05.2]} 48. Rec1 {[%clk 0:00:11.8]} 48... Qd5+ {[%clk
0:00:05.5]} 0-1

[Event "Late-Titled-Tuesday-Blitz-May-14-2024"]
[Site "Chess.com"]
[Date "2024.05.14"]
[Round "9"]
[White "Arystanner"]
[Black "rasmussvane"]
[Result "0-1"]
[WhiteElo "2833"]
[BlackElo "2980"]
[TimeControl "180+1"]
[EndTime "15:43:40 PDT"]
[Termination "rasmussvane won on time"]

1. d4 {[%clk 0:03:00.9]} 1... d5 {[%clk 0:02:57.7]} 2. Nf3 {[%clk 0:03:01.1]}
2... e6 {[%clk 0:02:57.3]} 3. c4 {[%clk 0:03:01.4]} 3... a6 {[%clk 0:02:57]} 4.
cxd5 {[%clk 0:02:58.8]} 4... exd5 {[%clk 0:02:57.9]} 5. Nc3 {[%clk 0:02:59.2]}
5... Nf6 {[%clk 0:02:58.6]} 6. Qb3 {[%clk 0:02:56.4]} 6... c6 {[%clk 0:02:47.5]}
7. Bg5 {[%clk 0:02:49.2]} 7... h6 {[%clk 0:02:41.4]} 8. Bh4 {[%clk 0:02:41.2]}
8... Be7 {[%clk 0:02:41.8]} 9. e3 {[%clk 0:02:41.6]} 9... O-O {[%clk 0:02:42.2]}
10. Bd3 {[%clk 0:02:41.6]} 10... Re8 {[%clk 0:02:42.8]} 11. O-O {[%clk
0:02:41.7]} 11... a5 {[%clk 0:02:40.8]} 12. Rac1 {[%clk 0:02:37.3]} 12... Nbd7
{[%clk 0:02:36.4]} 13. h3 {[%clk 0:02:32.5]} 13... Nh5 {[%clk 0:02:34.3]} 14.
Bxe7 {[%clk 0:02:27.9]} 14... Qxe7 {[%clk 0:02:35.2]} 15. Rfe1 {[%clk
0:02:23.1]} 15... Qb4 {[%clk 0:02:29.4]} 16. Qc2 {[%clk 0:02:16.5]} 16... Nhf6
{[%clk 0:02:26.2]} 17. e4 {[%clk 0:01:52.3]} 17... dxe4 {[%clk 0:02:24.2]} 18.
Nxe4 {[%clk 0:01:52.9]} 18... Nxe4 {[%clk 0:02:08.4]} 19. Bxe4 {[%clk
0:01:53.8]} 19... Nf6 {[%clk 0:02:08.9]} 20. Bh7+ {[%clk 0:01:54.3]} 20... Kf8
{[%clk 0:02:09.5]} 21. Rxe8+ {[%clk 0:01:54.7]} 21... Nxe8 {[%clk 0:02:10.4]}
22. Ne5 {[%clk 0:01:54.9]} 22... Qxd4 {[%clk 0:01:55]} 23. Re1 {[%clk
0:01:37.2]} 23... Nf6 {[%clk 0:01:42.5]} 24. Qb3 {[%clk 0:00:55.9]} 24... Qd5
{[%clk 0:01:28.5]} 25. Qa3+ {[%clk 0:00:56.2]} 25... c5 {[%clk 0:01:28.3]} 26.
Bc2 {[%clk 0:00:52.7]} 26... Be6 {[%clk 0:01:02.9]} 27. Bb3 {[%clk 0:00:51.8]}
27... Qd4 {[%clk 0:00:44.9]} 28. Bxe6 {[%clk 0:00:48.4]} 28... fxe6 {[%clk
0:00:45.8]} 29. Qb3 {[%clk 0:00:46]} 29... Qb4 {[%clk 0:00:45.5]} 30. Ng6+
{[%clk 0:00:41.5]} 30... Kg8 {[%clk 0:00:42.5]} 31. Qxe6+ {[%clk 0:00:41.1]}
31... Kh7 {[%clk 0:00:42.9]} 32. Ne7 {[%clk 0:00:26.4]} 32... Qf4 {[%clk
0:00:30.5]} 33. Qf7 {[%clk 0:00:21.3]} 33... Qg5 {[%clk 0:00:25.1]} 34. h4
{[%clk 0:00:09.1]} 34... Qg4 {[%clk 0:00:24.6]} 35. f3 {[%clk 0:00:06.8]} 35...
Qxh4 {[%clk 0:00:20.7]} 36. Qxg7+ {[%clk 0:00:03.5]} 36... Kxg7 {[%clk
0:00:19.7]} 37. Nf5+ {[%clk 0:00:04.4]} 37... Kf7 {[%clk 0:00:17.6]} 38. Nxh4
{[%clk 0:00:05.3]} 38... Rd8 {[%clk 0:00:17.9]} 39. Nf5 {[%clk 0:00:04.7]} 39...
Rd2 {[%clk 0:00:17.3]} 40. Re7+ {[%clk 0:00:03.4]} 40... Kg6 {[%clk 0:00:15.6]}
41. g4 {[%clk 0:00:03.9]} 41... Kg5 {[%clk 0:00:15.1]} 42. Rxb7 {[%clk
0:00:03.8]} 42... h5 {[%clk 0:00:11.8]} 43. Rb5 {[%clk 0:00:00.7]} 43... Rc2
{[%clk 0:00:10.7]} 44. Ne3 {[%clk 0:00:00.8]} 44... Rc1+ {[%clk 0:00:11.3]} 45.
Kf2 {[%clk 0:00:01.4]} 45... h4 {[%clk 0:00:10.3]} 46. Kg2 {[%clk 0:00:00.3]}
46... Kf4 {[%clk 0:00:10.1]} 0-1

[Event "Late-Titled-Tuesday-Blitz-May-14-2024"]
[Site "Chess.com"]
[Date "2024.05.14"]
[Round "9"]
[White "SpeedofLight0"]
[Black "Szparu"]
[Result "1-0"]
[WhiteElo "3021"]
[BlackElo "2892"]
[TimeControl "180+1"]
[EndTime "15:43:43 PDT"]
[Termination "SpeedofLight0 won by resignation"]

1. d4 {[%clk 0:03:00.9]} 1... d5 {[%clk 0:02:59.7]} 2. Nc3 {[%clk 0:03:01.3]}
2... Nf6 {[%clk 0:02:57]} 3. Bf4 {[%clk 0:03:01.9]} 3... e6 {[%clk 0:02:56.6]}
4. e3 {[%clk 0:03:01.5]} 4... Bb4 {[%clk 0:02:55]} 5. Bd3 {[%clk 0:03:01.5]}
5... c5 {[%clk 0:02:53.8]} 6. dxc5 {[%clk 0:03:02.4]} 6... Nbd7 {[%clk
0:02:52.3]} 7. Nf3 {[%clk 0:03:02.6]} 7... O-O {[%clk 0:02:45]} 8. O-O {[%clk
0:03:02.8]} 8... Nxc5 {[%clk 0:02:34]} 9. Bg5 {[%clk 0:03:02.7]} 9... Nxd3
{[%clk 0:02:30.8]} 10. cxd3 {[%clk 0:03:02.3]} 10... Be7 {[%clk 0:02:31]} 11.
Qb3 {[%clk 0:03:00.6]} 11... h6 {[%clk 0:02:30.2]} 12. Bh4 {[%clk 0:02:59.9]}
12... Qb6 {[%clk 0:02:10.9]} 13. Qxb6 {[%clk 0:02:48.8]} 13... axb6 {[%clk
0:02:11.8]} 14. Ne5 {[%clk 0:02:49.3]} 14... g5 {[%clk 0:02:02.1]} 15. Bg3
{[%clk 0:02:49.5]} 15... Nd7 {[%clk 0:02:02.5]} 16. Rfc1 {[%clk 0:02:32.5]}
16... Nxe5 {[%clk 0:02:02]} 17. Bxe5 {[%clk 0:02:33.4]} 17... Bd7 {[%clk
0:02:02.5]} 18. Bd4 {[%clk 0:02:30.1]} 18... b5 {[%clk 0:01:56.5]} 19. a3 {[%clk
0:02:27.8]} 19... b4 {[%clk 0:01:55.9]} 20. axb4 {[%clk 0:02:28.7]} 20... Bxb4
{[%clk 0:01:55.9]} 21. h4 {[%clk 0:02:23.4]} 21... Be7 {[%clk 0:01:48.7]} 22. h5
{[%clk 0:02:14.9]} 22... f6 {[%clk 0:01:48.5]} 23. e4 {[%clk 0:02:06.2]} 23...
Rxa1 {[%clk 0:01:46.6]} 24. Rxa1 {[%clk 0:02:06.1]} 24... dxe4 {[%clk
0:01:42.3]} 25. dxe4 {[%clk 0:02:03.3]} 25... Bc6 {[%clk 0:01:37.8]} 26. g4
{[%clk 0:01:56]} 26... f5 {[%clk 0:01:31.3]} 27. exf5 {[%clk 0:01:53.1]} 27...
exf5 {[%clk 0:01:31.1]} 28. Re1 {[%clk 0:01:54]} 28... Bd8 {[%clk 0:01:14.6]}
29. Re6 {[%clk 0:01:52.9]} 29... Kh7 {[%clk 0:01:04.3]} 30. Rg6 {[%clk 0:01:47]}
30... Rg8 {[%clk 0:00:44]} 31. gxf5 {[%clk 0:01:46.6]} 31... Bd7 {[%clk
0:00:42.6]} 32. Rd6 {[%clk 0:01:16.9]} 32... Bxf5 {[%clk 0:00:42.3]} 33. Nd5
{[%clk 0:01:17.3]} 33... Rf8 {[%clk 0:00:36.9]} 34. Ne3 {[%clk 0:01:00.1]} 34...
Bc8 {[%clk 0:00:32.6]} 35. Kg2 {[%clk 0:00:41.1]} 35... g4 {[%clk 0:00:29.8]}
36. Nd5 {[%clk 0:00:33.7]} 36... Bf5 {[%clk 0:00:17.8]} 37. Kg3 {[%clk 0:00:32]}
37... Bg5 {[%clk 0:00:17]} 38. Be3 {[%clk 0:00:24.2]} 38... Bxe3 {[%clk
0:00:11.1]} 39. Nxe3 {[%clk 0:00:25.1]} 39... Bc8 {[%clk 0:00:10.9]} 40. Rd5
{[%clk 0:00:21.7]} 40... Rf3+ {[%clk 0:00:10.2]} 41. Kg2 {[%clk 0:00:22.1]}
41... Rf4 {[%clk 0:00:10.1]} 42. Rc5 {[%clk 0:00:22.2]} 42... Bd7 {[%clk
0:00:08]} 43. Rc7 {[%clk 0:00:21.5]} 43... Rf7 {[%clk 0:00:08.6]} 44. Kg3 {[%clk
0:00:22]} 44... Kg7 {[%clk 0:00:05.9]} 45. Nxg4 {[%clk 0:00:19.9]} 45... Bxg4
{[%clk 0:00:02.3]} 46. Rxf7+ {[%clk 0:00:19.9]} 46... Kxf7 {[%clk 0:00:03.2]}
47. Kxg4 {[%clk 0:00:20.7]} 47... Ke6 {[%clk 0:00:02.5]} 48. Kf4 {[%clk
0:00:20.3]} 48... Kf6 {[%clk 0:00:03]} 49. f3 {[%clk 0:00:20.2]} 49... Ke6
{[%clk 0:00:03.6]} 50. Ke4 {[%clk 0:00:20.6]} 50... Kf6 {[%clk 0:00:04.1]} 51.
f4 {[%clk 0:00:21.3]} 51... Ke6 {[%clk 0:00:04.5]} 52. f5+ {[%clk 0:00:21.9]}
52... Kf6 {[%clk 0:00:05.4]} 53. Kf4 {[%clk 0:00:22.7]} 53... Kf7 {[%clk
0:00:05.1]} 54. Ke5 {[%clk 0:00:22.9]} 54... Ke7 {[%clk 0:00:05.7]} 55. f6+
{[%clk 0:00:23.4]} 55... Kf7 {[%clk 0:00:06.2]} 56. Kf5 {[%clk 0:00:23.5]} 56...
Kf8 {[%clk 0:00:06.7]} 57. Kg6 {[%clk 0:00:23.7]} 57... Kg8 {[%clk 0:00:05.9]}
58. Kxh6 {[%clk 0:00:24.6]} 58... Kf7 {[%clk 0:00:06.3]} 59. Kg5 {[%clk
0:00:25.5]} 1-0

[Event "Late-Titled-Tuesday-Blitz-May-14-2024"]
[Site "Chess.com"]
[Date "2024.05.14"]
[Round "9"]
[White "LUISMIGUELOV"]
[Black "laskakid"]
[Result "0-1"]
[WhiteElo "2218"]
[BlackElo "2371"]
[TimeControl "180+1"]
[EndTime "15:43:45 PDT"]
[Termination "laskakid won on time"]

1. d4 {[%clk 0:02:52.2]} 1... f5 {[%clk 0:02:59.6]} 2. Nc3 {[%clk 0:02:50.1]}
2... Nf6 {[%clk 0:02:59.4]} 3. e4 {[%clk 0:02:49.7]} 3... fxe4 {[%clk
0:02:58.3]} 4. Bg5 {[%clk 0:02:49.3]} 4... g6 {[%clk 0:02:56.7]} 5. Bxf6 {[%clk
0:02:48]} 5... exf6 {[%clk 0:02:56.3]} 6. Nxe4 {[%clk 0:02:48.1]} 6... Bg7
{[%clk 0:02:51.2]} 7. Qe2 {[%clk 0:02:45]} 7... O-O {[%clk 0:02:45.7]} 8. O-O-O
{[%clk 0:02:45.1]} 8... Re8 {[%clk 0:02:40.8]} 9. Qd3 {[%clk 0:02:44.1]} 9... d5
{[%clk 0:02:36.9]} 10. Ng3 {[%clk 0:02:42]} 10... Nc6 {[%clk 0:02:33.2]} 11. Nf3
{[%clk 0:02:32.3]} 11... Nb4 {[%clk 0:02:03.4]} 12. Qb3 {[%clk 0:02:29]} 12...
a5 {[%clk 0:02:02.9]} 13. c3 {[%clk 0:02:25.3]} 13... Nc6 {[%clk 0:02:00.8]} 14.
Bb5 {[%clk 0:02:25.6]} 14... Qd6 {[%clk 0:01:50.3]} 15. Rhe1 {[%clk 0:02:23.8]}
15... Bd7 {[%clk 0:01:46.7]} 16. a4 {[%clk 0:02:21.3]} 16... Re6 {[%clk
0:01:17.7]} 17. Rxe6 {[%clk 0:02:18.5]} 17... Bxe6 {[%clk 0:01:16.5]} 18. Re1
{[%clk 0:02:16.1]} 18... Kf7 {[%clk 0:01:12.5]} 19. h3 {[%clk 0:02:15.6]} 19...
h5 {[%clk 0:01:06.2]} 20. Qc2 {[%clk 0:01:59.4]} 20... Re8 {[%clk 0:00:55]} 21.
Qd2 {[%clk 0:01:55.9]} 21... Rh8 {[%clk 0:00:46.9]} 22. Kc2 {[%clk 0:01:39.9]}
22... h4 {[%clk 0:00:42.7]} 23. Nf1 {[%clk 0:01:37.4]} 23... Bh6 {[%clk
0:00:39.9]} 24. Ne3 {[%clk 0:01:37.1]} 24... Ne7 {[%clk 0:00:29.9]} 25. Kb3
{[%clk 0:01:33.3]} 25... c6 {[%clk 0:00:28.8]} 26. Bd3 {[%clk 0:01:32]} 26... b5
{[%clk 0:00:28.1]} 27. axb5 {[%clk 0:01:30]} 27... cxb5 {[%clk 0:00:27.4]} 28.
Bxb5 {[%clk 0:01:10.2]} 28... Rb8 {[%clk 0:00:26.6]} 29. Qd3 {[%clk 0:01:09.9]}
29... Bd7 {[%clk 0:00:25.1]} 30. c4 {[%clk 0:01:06.5]} 30... dxc4+ {[%clk
0:00:19.1]} 31. Qxc4+ {[%clk 0:01:06.3]} 31... Be6 {[%clk 0:00:19]} 32. d5
{[%clk 0:01:04.9]} 32... Nxd5 {[%clk 0:00:19.2]} 33. Nd4 {[%clk 0:00:40.4]}
33... Nc7 {[%clk 0:00:12.5]} 34. Nxe6 {[%clk 0:00:33.8]} 34... Rxb5+ {[%clk
0:00:12.2]} 35. Ka2 {[%clk 0:00:28.8]} 35... Qxe6 {[%clk 0:00:10.2]} 36. b3
{[%clk 0:00:16.3]} 36... Bxe3 {[%clk 0:00:09.1]} 37. Rxe3 {[%clk 0:00:14.1]}
37... Qxc4 {[%clk 0:00:09.1]} 38. bxc4 {[%clk 0:00:13.5]} 38... Re5 {[%clk
0:00:09.3]} 39. Rd3 {[%clk 0:00:12.5]} 39... Ke6 {[%clk 0:00:08.7]} 40. Kb3
{[%clk 0:00:11]} 40... Re2 {[%clk 0:00:08.3]} 41. Rf3 {[%clk 0:00:10.8]} 41...
Na6 {[%clk 0:00:08.3]} 42. Ka4 {[%clk 0:00:10.2]} 42... Nc5+ {[%clk 0:00:08.5]}
43. Kxa5 {[%clk 0:00:09.2]} 43... Ne4 {[%clk 0:00:08.7]} 44. Kb6 {[%clk
0:00:06.4]} 44... Rxf2 {[%clk 0:00:08.3]} 45. Rxf2 {[%clk 0:00:04.8]} 45... Nxf2
{[%clk 0:00:07.9]} 46. c5 {[%clk 0:00:05.3]} 46... Ne4 {[%clk 0:00:07.9]} 47. c6
{[%clk 0:00:05.7]} 47... Nd6 {[%clk 0:00:08]} 48. c7 {[%clk 0:00:02.7]} 48...
Kd7 {[%clk 0:00:08.1]} 0-1

[Event "Late-Titled-Tuesday-Blitz-May-14-2024"]
[Site "Chess.com"]
[Date "2024.05.14"]
[Round "9"]
[White "howitzer14"]
[Black "MaxLeto"]
[Result "1-0"]
[WhiteElo "2999"]
[BlackElo "2384"]
[TimeControl "180+1"]
[EndTime "15:43:47 PDT"]
[Termination "howitzer14 won on time"]

1. e4 {[%clk 0:03:00.9]} 1... c5 {[%clk 0:02:18.3]} 2. Nf3 {[%clk 0:02:50.4]}
2... d6 {[%clk 0:02:17.5]} 3. Bc4 {[%clk 0:02:33.7]} 3... e6 {[%clk 0:02:17]} 4.
O-O {[%clk 0:02:32.5]} 4... a6 {[%clk 0:02:14.6]} 5. a4 {[%clk 0:02:30.5]} 5...
Nf6 {[%clk 0:02:13.4]} 6. Re1 {[%clk 0:02:23.2]} 6... Be7 {[%clk 0:02:13.3]} 7.
d4 {[%clk 0:02:11.3]} 7... cxd4 {[%clk 0:02:14.2]} 8. Nxd4 {[%clk 0:02:11.9]}
8... O-O {[%clk 0:02:14.4]} 9. Nc3 {[%clk 0:02:12.5]} 9... Qc7 {[%clk 0:02:10]}
10. Ba2 {[%clk 0:02:04.4]} 10... Nc6 {[%clk 0:01:54.5]} 11. Be3 {[%clk
0:01:56.6]} 11... Nb4 {[%clk 0:01:47.7]} 12. Bb3 {[%clk 0:01:54.3]} 12... Bd7
{[%clk 0:01:47.1]} 13. h3 {[%clk 0:01:41.3]} 13... Rfc8 {[%clk 0:01:47.4]} 14.
Qd2 {[%clk 0:01:37.6]} 14... Be8 {[%clk 0:01:43.9]} 15. Nxe6 {[%clk 0:01:22.2]}
15... fxe6 {[%clk 0:01:43.1]} 16. Bxe6+ {[%clk 0:01:23.1]} 16... Bf7 {[%clk
0:01:42.5]} 17. Bxc8 {[%clk 0:01:17.9]} 17... Rxc8 {[%clk 0:01:43.4]} 18. a5
{[%clk 0:01:16.1]} 18... Nd7 {[%clk 0:00:49]} 19. Ra4 {[%clk 0:00:53.5]} 19...
Nc6 {[%clk 0:00:21]} 20. Nd5 {[%clk 0:00:53.6]} 20... Qd8 {[%clk 0:00:17.9]} 21.
Rd1 {[%clk 0:00:32.7]} 21... Bf8 {[%clk 0:00:15.6]} 22. b3 {[%clk 0:00:31.2]}
22... Qe8 {[%clk 0:00:11.1]} 23. Nb6 {[%clk 0:00:26.1]} 23... Nxb6 {[%clk
0:00:09.6]} 24. Bxb6 {[%clk 0:00:27]} 24... Ne5 {[%clk 0:00:06.1]} 25. Rd4
{[%clk 0:00:24.3]} 25... Qc6 {[%clk 0:00:05.9]} 26. c4 {[%clk 0:00:24.4]} 26...
Nd7 {[%clk 0:00:06.1]} 27. Ba7 {[%clk 0:00:05.8]} 27... Ra8 {[%clk 0:00:05.7]}
28. Rxd6 {[%clk 0:00:06.1]} 28... Bxd6 {[%clk 0:00:05.6]} 29. Qxd6 {[%clk
0:00:07]} 29... Qxd6 {[%clk 0:00:05.9]} 30. Rxd6 {[%clk 0:00:07.6]} 30... Be8
{[%clk 0:00:04.4]} 31. Bd4 {[%clk 0:00:06.1]} 31... Kf7 {[%clk 0:00:03.4]} 32.
f4 {[%clk 0:00:03.8]} 32... Nf8 {[%clk 0:00:03.1]} 33. f5 {[%clk 0:00:03.7]}
33... Bc6 {[%clk 0:00:03.5]} 34. e5 {[%clk 0:00:04]} 34... Re8 {[%clk
0:00:03.2]} 35. Kf2 {[%clk 0:00:03.6]} 35... Re7 {[%clk 0:00:02.4]} 36. g4
{[%clk 0:00:04.1]} 36... h6 {[%clk 0:00:02.3]} 37. Kg3 {[%clk 0:00:04.6]} 37...
Nh7 {[%clk 0:00:02.7]} 38. h4 {[%clk 0:00:04.5]} 38... Ke8 {[%clk 0:00:02.7]}
39. Kf4 {[%clk 0:00:05.1]} 39... Rd7 {[%clk 0:00:03.2]} 40. Rxd7 {[%clk
0:00:04.8]} 40... Kxd7 {[%clk 0:00:03.4]} 41. e6+ {[%clk 0:00:05.7]} 41... Ke7
{[%clk 0:00:03.7]} 42. Bxg7 {[%clk 0:00:06.6]} 42... h5 {[%clk 0:00:03.2]} 43.
g5 {[%clk 0:00:06.6]} 43... Bg2 {[%clk 0:00:02.3]} 44. Ke5 {[%clk 0:00:06.8]}
44... Bh3 {[%clk 0:00:02.1]} 45. g6 {[%clk 0:00:06.7]} 45... Nf8 {[%clk
0:00:01.3]} 46. f6+ {[%clk 0:00:07.1]} 46... Ke8 {[%clk 0:00:01.2]} 47. Bxf8
{[%clk 0:00:08]} 47... Kxf8 {[%clk 0:00:01.5]} 48. e7+ {[%clk 0:00:08]} 48...
Ke8 {[%clk 0:00:01.7]} 49. g7 {[%clk 0:00:08.3]} 1-0

[Event "Late-Titled-Tuesday-Blitz-May-14-2024"]
[Site "Chess.com"]
[Date "2024.05.14"]
[Round "9"]
[White "Dolphin_2010"]
[Black "Felix-Rose"]
[Result "1-0"]
[WhiteElo "2623"]
[BlackElo "2323"]
[TimeControl "180+1"]
[EndTime "15:43:50 PDT"]
[Termination "Dolphin_2010 won by resignation"]

1. d4 {[%clk 0:03:00.9]} 1... d5 {[%clk 0:02:59.8]} 2. c4 {[%clk 0:02:53.4]}
2... e6 {[%clk 0:02:59.4]} 3. Nc3 {[%clk 0:02:51.1]} 3... Nf6 {[%clk 0:02:59.4]}
4. Bf4 {[%clk 0:02:34.6]} 4... Be7 {[%clk 0:02:53.2]} 5. e3 {[%clk 0:02:31.8]}
5... O-O {[%clk 0:02:51.7]} 6. Nf3 {[%clk 0:02:27.8]} 6... b6 {[%clk 0:02:51.9]}
7. cxd5 {[%clk 0:02:25]} 7... Nxd5 {[%clk 0:02:52.8]} 8. Nxd5 {[%clk 0:02:23.3]}
8... Qxd5 {[%clk 0:02:53.7]} 9. Bd3 {[%clk 0:02:22.6]} 9... Qa5+ {[%clk
0:02:49.5]} 10. Kf1 {[%clk 0:02:14.2]} 10... c5 {[%clk 0:02:47.3]} 11. Be4
{[%clk 0:02:12.3]} 11... Ba6+ {[%clk 0:02:15.6]} 12. Kg1 {[%clk 0:02:11.2]}
12... Nd7 {[%clk 0:02:15.4]} 13. Bxa8 {[%clk 0:02:06.6]} 13... Rxa8 {[%clk
0:02:14.9]} 14. d5 {[%clk 0:02:07.5]} 14... Bc4 {[%clk 0:01:56.9]} 15. dxe6
{[%clk 0:02:02.7]} 15... Bxe6 {[%clk 0:01:57.8]} 16. Bg5 {[%clk 0:01:57.7]}
16... f6 {[%clk 0:01:42.7]} 17. Bf4 {[%clk 0:01:55.7]} 17... Qb5 {[%clk
0:01:33.8]} 18. Bd6 {[%clk 0:01:46.6]} 18... Kf7 {[%clk 0:01:19.8]} 19. b3
{[%clk 0:01:28.2]} 19... Rd8 {[%clk 0:01:06]} 20. Bxe7 {[%clk 0:01:26.1]} 20...
Kxe7 {[%clk 0:01:06.9]} 21. Qf1 {[%clk 0:01:22.2]} 21... Qa5 {[%clk 0:01:03.9]}
22. Qe1 {[%clk 0:01:21.6]} 22... Qa3 {[%clk 0:01:03.3]} 23. Qc3 {[%clk
0:01:14.5]} 23... b5 {[%clk 0:00:56]} 24. h3 {[%clk 0:01:06.2]} 24... b4 {[%clk
0:00:55.5]} 25. Qc1 {[%clk 0:01:05.5]} 25... Qa5 {[%clk 0:00:53.3]} 26. Kh2
{[%clk 0:01:03.4]} 26... Qc7+ {[%clk 0:00:53.6]} 27. Kg1 {[%clk 0:00:59.1]}
27... a5 {[%clk 0:00:50.7]} 28. Qc2 {[%clk 0:00:55.5]} 28... g6 {[%clk
0:00:47.2]} 29. Rc1 {[%clk 0:00:53.3]} 29... Ra8 {[%clk 0:00:29.6]} 30. Qe4
{[%clk 0:00:46.8]} 30... Ra6 {[%clk 0:00:25.8]} 31. Nd4 {[%clk 0:00:44.3]} 31...
Ne5 {[%clk 0:00:16.1]} 32. f4 {[%clk 0:00:36.2]} 32... Nf7 {[%clk 0:00:12.1]}
33. Rxc5 {[%clk 0:00:29.7]} 33... Qxc5 {[%clk 0:00:07.8]} 34. Qb7+ {[%clk
0:00:29.6]} 34... Bd7 {[%clk 0:00:06.2]} 35. Qxa6 {[%clk 0:00:28.1]} 35... Qc1+
{[%clk 0:00:06.6]} 36. Kh2 {[%clk 0:00:25.2]} 36... Qxe3 {[%clk 0:00:07.2]} 37.
Qe2 {[%clk 0:00:18.5]} 37... Qxe2 {[%clk 0:00:05.5]} 38. Nxe2 {[%clk 0:00:19.4]}
38... a4 {[%clk 0:00:03.5]} 39. bxa4 {[%clk 0:00:18.9]} 39... Bxa4 {[%clk
0:00:03.7]} 40. Rb1 {[%clk 0:00:19.4]} 40... Bb5 {[%clk 0:00:03.4]} 41. Rxb4
{[%clk 0:00:18.3]} 41... Bxe2 {[%clk 0:00:03.5]} 42. Re4+ {[%clk 0:00:18.9]}
42... Kd6 {[%clk 0:00:03.8]} 43. Rxe2 {[%clk 0:00:19.8]} 43... Kc5 {[%clk
0:00:02.8]} 44. Re7 {[%clk 0:00:18.1]} 44... Nd6 {[%clk 0:00:03]} 45. Rxh7
{[%clk 0:00:17.6]} 45... g5 {[%clk 0:00:02.7]} 46. fxg5 {[%clk 0:00:16.8]} 46...
fxg5 {[%clk 0:00:03.6]} 47. Rh5 {[%clk 0:00:17.1]} 47... Ne4 {[%clk 0:00:04.3]}
48. h4 {[%clk 0:00:17.7]} 48... Kd4 {[%clk 0:00:04.9]} 49. Rxg5 {[%clk
0:00:18.3]} 49... Nxg5 {[%clk 0:00:04.6]} 50. hxg5 {[%clk 0:00:19.2]} 50... Ke5
{[%clk 0:00:05.3]} 51. a4 {[%clk 0:00:19.3]} 51... Kf5 {[%clk 0:00:06.2]} 52. a5
{[%clk 0:00:20.2]} 52... Kxg5 {[%clk 0:00:06.7]} 53. a6 {[%clk 0:00:21.1]} 53...
Kf6 {[%clk 0:00:07.6]} 54. a7 {[%clk 0:00:22]} 54... Ke7 {[%clk 0:00:08.4]} 55.
a8=Q {[%clk 0:00:22.8]} 55... Kd7 {[%clk 0:00:09.3]} 56. Qa6 {[%clk 0:00:23.2]}
56... Ke7 {[%clk 0:00:08.8]} 57. Kg3 {[%clk 0:00:24.1]} 57... Kf7 {[%clk
0:00:09.7]} 58. Kf3 {[%clk 0:00:25]} 58... Kg7 {[%clk 0:00:10.6]} 59. Ke4 {[%clk
0:00:25.9]} 59... Kh7 {[%clk 0:00:10.6]} 60. Kf5 {[%clk 0:00:26.8]} 60... Kg7
{[%clk 0:00:11.5]} 61. g4 {[%clk 0:00:27.7]} 61... Kh7 {[%clk 0:00:12.4]} 62.
Qb6 {[%clk 0:00:28.5]} 62... Kg7 {[%clk 0:00:12.3]} 63. g5 {[%clk 0:00:29.4]}
63... Kf7 {[%clk 0:00:13.2]} 64. Qc7+ {[%clk 0:00:30.3]} 64... Kg8 {[%clk
0:00:12.4]} 65. Kg6 {[%clk 0:00:31.2]} 65... Kf8 {[%clk 0:00:12.9]} 66. Kf6
{[%clk 0:00:32.1]} 1-0